bitfinex-derivatives/quotes_BTCF0:USTF0_20250630
["timestamp","ask_amount","ask_price","bid_price","bid_amount"]
[1751300555934,1.77781679,107500.0,107490.0,0.22864271]
[1751300557030,2.15781679,107500.0,107490.0,0.22864271]
[1751300557740,2.15781679,107500.0,107490.0,0.22864502]
[1751300559743,2.15781679,107500.0,107490.0,0.21410171]
[1751300562439,2.08781679,107500.0,107490.0,0.11797556]
[1751300562645,2.08781679,107500.0,107490.0,1e-08]
[1751300562838,2.37469513,107500.0,107490.0,1e-08]
[1751300563344,0.1860178,107490.0,107480.0,1.7653144]
[1751300563538,1.37444097,107490.0,107480.0,1.7653144]
[1751300563738,1.37493743,107490.0,107480.0,1.7653144]
[1751300564348,1.57258043,107490.0,107480.0,1.6899211]
[1751300564739,1.57258043,107490.0,107480.0,1.6529493]
[1751300565844,2.29194043,107490.0,107480.0,1.6529493]
[1751300566849,2.29594043,107490.0,107480.0,1.6529493]
[1751300568245,2.90293914,107490.0,107480.0,1.6529493]
[1751300568444,2.58731597,107490.0,107480.0,1.6529493]
[1751300568645,2.40124397,107490.0,107480.0,1.6529493]
[1751300568840,2.39724397,107490.0,107480.0,1.6529493]
[1751300569041,2.40424397,107490.0,107480.0,1.6529493]
[1751300569245,2.40424397,107490.0,107480.0,1.57364949]
[1751300569450,2.96155623,107490.0,107480.0,1.44851369]
[1751300569647,2.77548423,107490.0,107480.0,1.37581299]
[1751300569946,2.77548423,107490.0,107480.0,1.16634899]
[1751300570151,2.77548423,107490.0,107480.0,1.01063989]
[1751300570349,2.77548423,107490.0,107480.0,0.95716409]
[1751300570653,2.77548423,107490.0,107480.0,0.66096159]
[1751300570853,2.77548423,107490.0,107480.0,0.45693249]
[1751300571047,2.77548423,107490.0,107480.0,0.32036579]
[1751300571247,2.77548423,107490.0,107480.0,0.22487009]
[1751300571441,2.77548423,107490.0,107480.0,0.11788349]
[1751300571653,2.77548423,107490.0,107480.0,0.04091699]
[1751300571948,2.77548423,107490.0,107480.0,9e-08]
[1751300572647,2.77548423,107490.0,107480.0,0.15190709]
[1751300572951,2.77548423,107490.0,107480.0,0.10845409]
[1751300573154,2.77548423,107490.0,107480.0,0.07765729]
[1751300573354,2.77548423,107490.0,107480.0,0.05076429]
[1751300573652,2.77548423,107490.0,107480.0,0.01342529]
[1751300574047,2.71986714,107490.0,107480.0,0.01342529]
[1751300574246,2.77548423,107490.0,107480.0,0.01342529]
[1751300574448,2.71986714,107490.0,107480.0,0.01342529]
[1751300574654,2.77548423,107490.0,107480.0,0.01342529]
[1751300574846,2.86852046,107490.0,107480.0,0.01342529]
[1751300575348,2.67087746,107490.0,107480.0,0.01342529]
[1751300575749,2.67137392,107490.0,107480.0,0.01342529]
[1751300576247,2.67137392,107490.0,107480.0,9e-08]
[1751300578255,0.1860352,107480.0,107470.0,0.00089054]
[1751300578448,2.52660154,107480.0,107470.0,0.00089054]
[1751300578848,2.724741,107480.0,107470.0,0.00089054]
[1751300579548,2.80087472,107480.0,107470.0,0.00089054]
[1751300580151,2.80587472,107480.0,107470.0,0.00089054]
[1751300580947,3.00353672,107480.0,107470.0,0.00089054]
[1751300581551,2.37229038,107480.0,107470.0,0.00089054]
[1751300581750,3.34473355,107480.0,107470.0,0.00089054]
[1751300581952,3.66035672,107480.0,107470.0,0.06329054]
[1751300582459,3.66035672,107480.0,107470.0,0.03279054]
[1751300582659,3.69315672,107480.0,107470.0,0.03279054]
[1751300583958,3.69315672,107480.0,107470.0,0.00089054]
[1751300584961,0.1860871,107450.0,107440.0,0.09264137]
[1751300585254,2.01208673,107450.0,107440.0,0.21565959]
[1751300585660,2.01208673,107450.0,107440.0,0.16093527]
[1751300586056,2.01208673,107450.0,107440.0,0.16393527]
[1751300586359,1.81143069,107450.0,107440.0,0.16393527]
[1751300586559,2.05143069,107450.0,107440.0,0.16393527]
[1751300586761,2.21246676,107450.0,107430.0,0.05472432]
[1751300586967,0.1861391,107420.0,107410.0,0.11274232]
[1751300587259,0.46129646,107420.0,107410.0,0.25610035]
[1751300587453,1.00571556,107420.0,107410.0,0.06994395]
[1751300587651,1.68213873,107420.0,107410.0,0.06994395]
[1751300588160,1.68225873,107420.0,107410.0,0.06994395]
[1751300588459,1.68221873,107420.0,107410.0,0.07394395]
[1751300588849,0.96305873,107420.0,107410.0,0.06994395]
[1751300589156,1.68221873,107420.0,107410.0,0.06994395]
[1751300589363,2.04221873,107420.0,107410.0,0.06994395]
[1751300589554,2.01221873,107420.0,107410.0,0.06994395]
[1751300589758,2.01221873,107420.0,107410.0,0.03864395]
[1751300589962,2.01221873,107420.0,107410.0,0.07144395]
[1751300591660,2.43300134,107420.0,107410.0,5e-08]
[1751300591860,2.5576982,107420.0,107410.0,5e-08]
[1751300592060,0.2861738,107400.0,107390.0,0.0949]
[1751300592249,2.72822014,107400.0,107390.0,0.0949]
[1751300592455,2.7588166,107400.0,107390.0,0.0949]
[1751300592654,2.7588166,107400.0,107390.0,0.0309]
[1751300592857,0.1861911,107390.0,107380.0,0.00093123]
[1751300593057,2.16731427,107390.0,107380.0,0.03183123]
[1751300593457,2.16781073,107390.0,107380.0,0.03183123]
[1751300594365,2.16781073,107390.0,107380.0,0.05958159]
[1751300595466,2.86291073,107390.0,107380.0,0.05958159]
[1751300595666,2.86291073,107390.0,107380.0,0.09178159]
[1751300595963,2.86515073,107390.0,107380.0,0.09178159]
[1751300596167,2.87445744,107390.0,107380.0,0.09178159]
[1751300596466,2.14901744,107390.0,107380.0,0.09178159]
[1751300596760,2.87457744,107390.0,107380.0,0.09178159]
[1751300596957,2.87445744,107390.0,107380.0,0.09178159]
[1751300598763,2.87445744,107390.0,107380.0,0.10600905]
[1751300600363,2.87441744,107390.0,107380.0,0.10600905]
[1751300600567,2.87441744,107390.0,107380.0,0.09178159]
[1751300600768,2.87441744,107390.0,107380.0,0.1061216]
[1751300600959,2.87441744,107390.0,107380.0,0.03183123]
[1751300601160,2.93771744,107390.0,107380.0,0.03183123]
[1751300601360,2.93771744,107390.0,107380.0,0.00093123]
[1751300601758,2.96871744,107390.0,107380.0,0.00093123]
[1751300604382,2.96871744,107390.0,107380.0,0.01540678]
[1751300604568,2.65309427,107390.0,107380.0,0.01540678]
[1751300604777,2.96871744,107390.0,107380.0,0.01540678]
[1751300605372,2.96871744,107390.0,107380.0,0.22752619]
[1751300606370,2.93707744,107390.0,107380.0,0.22752619]
[1751300606574,2.93707744,107390.0,107380.0,0.26032619]
[1751300606774,0.65879427,107390.0,107380.0,0.24576778]
[1751300606968,2.50525744,107390.0,107380.0,0.29242533]
[1751300607168,2.86525744,107390.0,107380.0,0.27786778]
[1751300607472,2.86525744,107390.0,107380.0,0.29242452]
[1751300608171,2.86525744,107390.0,107380.0,0.27786778]
[1751300608877,2.8657539,107390.0,107380.0,0.27786778]
[1751300609077,2.8657539,107390.0,107380.0,0.29242517]
[1751300609778,2.8977539,107390.0,107380.0,0.29242517]
[1751300610076,2.8977539,107390.0,107380.0,0.27786778]
[1751300610276,2.8977539,107390.0,107380.0,0.26339223]
[1751300610868,2.8977539,107390.0,107380.0,0.23129223]
[1751300611380,2.1719139,107390.0,107380.0,0.23129223]
[1751300611577,2.8983939,107390.0,107380.0,0.23129223]
[1751300611780,2.8983939,107390.0,107380.0,0.26329223]
[1751300612080,0.83309963,107390.0,107380.0,0.26329223]
[1751300612276,0.92829063,107390.0,107380.0,0.66574863]
[1751300612773,0.92829063,107390.0,107380.0,0.47950063]
[1751300612975,0.01229963,107390.0,107380.0,0.47950063]
[1751300613277,0.73307292,107390.0,107380.0,0.9813718]
[1751300613480,0.18918392,107390.0,107380.0,0.9813718]
[1751300614186,0.18918392,107390.0,107380.0,1.2313718]
[1751300614481,0.91910392,107390.0,107380.0,0.93007749]
[1751300615172,0.91910392,107390.0,107380.0,0.95782785]
[1751300615371,0.00299292,107390.0,107380.0,0.95782846]
[1751300615683,0.5004246,107410.0,107390.0,0.3258258]
[1751300615879,0.85279679,107410.0,107400.0,0.0619]
[1751300616075,0.95279679,107410.0,107400.0,0.0619]
[1751300616383,0.44545389,107410.0,107400.0,0.56369687]
[1751300616581,0.79917219,107410.0,107400.0,1.70070486]
[1751300616883,0.02401579,107410.0,107400.0,1.70070486]
[1751300617082,0.54222624,107420.0,107410.0,0.1861564]
[1751300617283,1.13146624,107420.0,107410.0,0.92507957]
[1751300617581,0.99185314,107420.0,107410.0,1.36127157]
[1751300617783,0.40261314,107420.0,107410.0,1.36127157]
[1751300617973,1.38171097,107420.0,107410.0,0.6094564]
[1751300618270,1.38171097,107420.0,107410.0,0.6094565]
[1751300618679,1.0660878,107420.0,107410.0,0.6094565]
[1751300620284,1.0660878,107420.0,107410.0,0.6412565]
[1751300621477,1.0720878,107420.0,107410.0,0.6412565]
[1751300623285,1.84851097,107420.0,107410.0,0.2804565]
[1751300623688,2.21851097,107420.0,107410.0,0.0625]
[1751300623882,2.20491631,107420.0,107410.0,0.2486564]
[1751300624489,2.27926547,107420.0,107410.0,0.2486564]
[1751300624991,2.27926547,107420.0,107410.0,0.0321]
[1751300625191,1.83491631,107420.0,107410.0,0.2182565]
[1751300625390,2.20491631,107420.0,107410.0,0.2182565]
[1751300625890,2.27926653,107420.0,107410.0,0.2182565]
[1751300626092,1.90926653,107420.0,107410.0,0.2182565]
[1751300626490,1.89068184,107420.0,107410.0,0.2182565]
[1751300629086,1.91472159,107420.0,107410.0,0.2182565]
[1751300629695,1.91472159,107420.0,107410.0,0.1861565]
[1751300629696,2.26472159,107420.0,107410.0,0.1861565]
[1751300629893,2.29652159,107420.0,107410.0,0.1861565]
[1751300630487,0.1861565,107410.0,107400.0,0.4223825]
[1751300630693,0.52581942,107410.0,107400.0,0.4223825]
[1751300631694,0.53081942,107410.0,107400.0,0.4223825]
[1751300634002,0.21519625,107410.0,107400.0,0.4223825]
[1751300634203,0.53081942,107410.0,107400.0,0.4223825]
[1751300634803,0.21519625,107410.0,107400.0,0.4223825]
[1751300635905,0.24779625,107410.0,107400.0,0.4223825]
[1751300637014,0.56341942,107410.0,107400.0,0.2827738]
[1751300637214,0.70859625,107410.0,107400.0,0.2827738]
[1751300637415,1.02421942,107410.0,107400.0,0.2191738]
[1751300639814,1.05741942,107410.0,107400.0,0.2191738]
[1751300640215,1.36741942,107410.0,107400.0,0.1861738]
[1751300641117,0.1861738,107400.0,107390.0,0.3122703]
[1751300641318,1.31687672,107400.0,107390.0,0.3588173]
[1751300641511,1.34937672,107400.0,107390.0,0.3588173]
[1751300641713,1.34937672,107400.0,107390.0,0.2792703]
[1751300641909,1.44937672,107400.0,107390.0,0.2792703]
[1751300642413,0.1861911,107390.0,107380.0,0.57276955]
[1751300642618,0.65665402,107390.0,107380.0,0.52621825]
[1751300642810,0.68915402,107390.0,107380.0,0.52621825]
[1751300643314,0.37353085,107390.0,107380.0,0.52621825]
[1751300643618,0.69015402,107390.0,107380.0,0.52621825]
[1751300644718,0.59015402,107390.0,107380.0,0.52621825]
[1751300644914,0.08833975,107390.0,107380.0,0.52621825]
[1751300645115,0.24203085,107390.0,107380.0,0.52621825]
[1751300645619,0.05583975,107390.0,107380.0,0.88701825]
[1751300645819,0.24203085,107390.0,107380.0,0.88701825]
[1751300646020,0.97039085,107390.0,107380.0,0.88701825]
[1751300646221,0.97039085,107390.0,107380.0,0.90104622]
[1751300647025,1.28601402,107390.0,107380.0,0.90104622]
[1751300647923,0.97039085,107390.0,107380.0,0.90104622]
[1751300649522,0.97039085,107390.0,107380.0,0.91560226]
[1751300649723,0.97039085,107390.0,107380.0,0.89897074]
[1751300650426,0.24203085,107390.0,107380.0,0.93057074]
[1751300650627,0.96951085,107390.0,107380.0,0.93057074]
[1751300650926,0.24203085,107390.0,107380.0,0.96337074]
[1751300651122,0.96935085,107390.0,107380.0,0.96337074]
[1751300651319,0.02503975,107390.0,107380.0,1.31443787]
[1751300651627,0.75215975,107390.0,107380.0,1.2788147]
[1751300651830,0.75215975,107390.0,107380.0,1.89103787]
[1751300652121,0.93835085,107390.0,107380.0,1.89103787]
[1751300652325,0.93835085,107390.0,107380.0,1.90559369]
[1751300654228,0.93835085,107390.0,107380.0,1.58997052]
[1751300654521,0.93835085,107390.0,107380.0,1.90559369]
[1751300654729,0.93835085,107390.0,107380.0,1.72559369]
[1751300657429,0.75215975,107390.0,107380.0,1.90559369]
[1751300657931,0.75215975,107390.0,107380.0,1.71559369]
[1751300658529,1.25397402,107390.0,107380.0,1.39997052]
[1751300658829,1.25397402,107390.0,107380.0,1.36719935]
[1751300659025,1.00105085,107390.0,107380.0,1.36719935]
[1751300659226,1.31667402,107390.0,107380.0,1.36719935]
[1751300659533,1.31667402,107390.0,107380.0,1.22719935]
[1751300660032,1.41667402,107390.0,107380.0,0.83479935]
[1751300660732,1.10105085,107390.0,107380.0,0.83479935]
[1751300660934,1.41667402,107390.0,107380.0,0.83479935]
[1751300662434,1.31667402,107390.0,107380.0,0.83479935]
[1751300662634,1.41643402,107390.0,107380.0,0.83479935]
[1751300662933,1.31643402,107390.0,107380.0,0.83479935]
[1751300663534,1.31643402,107390.0,107380.0,0.53819935]
[1751300663726,1.31643402,107390.0,107380.0,0.52414255]
[1751300663927,1.31643402,107390.0,107380.0,0.53828916]
[1751300664636,1.67723402,107390.0,107380.0,0.53828916]
[1751300665436,1.36161085,107390.0,107380.0,0.53828916]
[1751300665633,0.81461975,107390.0,107380.0,0.53828916]
[1751300665834,0.78351975,107390.0,107380.0,0.53828916]
[1751300666030,0.05663975,107390.0,107380.0,0.56908916]
[1751300666331,0.78315975,107390.0,107380.0,0.56908916]
[1751300666537,0.96935085,107390.0,107380.0,0.56908916]
[1751300666736,0.78315975,107390.0,107380.0,0.56908916]
[1751300666934,0.78315975,107390.0,107380.0,0.94988916]
[1751300667236,0.41656553,107410.0,107400.0,0.1861738]
[1751300667430,1.49376713,107410.0,107400.0,0.20017617]
[1751300667630,1.49376713,107410.0,107400.0,0.2172738]
[1751300668030,1.8093903,107410.0,107400.0,0.2172738]
[1751300668231,1.8144303,107410.0,107400.0,0.2172738]
[1751300668835,1.8143503,107410.0,107400.0,0.2172738]
[1751300669333,1.9143503,107410.0,107400.0,0.2172738]
[1751300673635,1.6281887,107410.0,107400.0,0.2172738]
[1751300673940,1.8143451,107410.0,107400.0,0.2172738]
[1751300674542,1.9143451,107410.0,107400.0,0.2172738]
[1751300675538,1.1875451,107410.0,107400.0,0.2172738]
[1751300675737,1.9462251,107410.0,107400.0,0.2172738]
[1751300676143,1.63060193,107410.0,107400.0,0.2172738]
[1751300676445,1.8136652,107410.0,107400.0,0.2172738]
[1751300677042,1.9136652,107410.0,107400.0,0.2172738]
[1751300677443,1.9468652,107410.0,107400.0,0.2172738]
[1751300678845,1.63124203,107410.0,107400.0,0.2172738]
[1751300679241,1.96938844,107410.0,107400.0,0.2172738]
[1751300679941,0.08328877,107410.0,107400.0,0.90289697]
[1751300680139,0.02752324,107410.0,107400.0,1.29489697]
[1751300680841,0.16848324,107410.0,107400.0,1.30945065]
[1751300682248,0.35463974,107410.0,107400.0,0.99382748]
[1751300682448,0.35463974,107410.0,107400.0,1.30945065]
[1751300683342,0.35463974,107410.0,107400.0,0.9792738]
[1751300683546,0.35463974,107410.0,107400.0,0.99382741]
[1751300684348,0.35463974,107410.0,107400.0,1.30945058]
[1751300685447,0.35463974,107410.0,107400.0,0.99382741]
[1751300686343,0.35463974,107410.0,107400.0,0.62382741]
[1751300686547,0.35463974,107410.0,107400.0,0.89382741]
[1751300686947,0.35463974,107410.0,107400.0,1.20945058]
[1751300687143,0.35463974,107410.0,107400.0,0.89382741]
[1751300688154,0.35463974,107410.0,107400.0,0.8792738]
[1751300688850,0.38663974,107410.0,107400.0,0.8792738]
[1751300689948,0.20048324,107410.0,107400.0,1.19489697]
[1751300690149,0.16848324,107410.0,107400.0,1.19489697]
[1751300691152,0.02752324,107410.0,107400.0,1.19489697]
[1751300691452,0.75716324,107410.0,107400.0,1.19489697]
[1751300691744,0.94331964,107410.0,107400.0,1.19489697]
[1751300691951,0.75716324,107410.0,107400.0,1.19489697]
[1751300692245,0.02752324,107410.0,107400.0,1.19489697]
[1751300692643,0.75700324,107410.0,107400.0,1.19489697]
[1751300692944,0.16844324,107410.0,107400.0,1.19489697]
[1751300693146,0.02752324,107410.0,107400.0,1.19489697]
[1751300693350,0.75688324,107410.0,107400.0,1.19489697]
[1751300694156,0.94303974,107410.0,107400.0,0.8792738]
[1751300694343,0.94303974,107410.0,107400.0,1.19489697]
[1751300694544,0.75688324,107410.0,107400.0,1.19489697]
[1751300697144,0.02752324,107410.0,107400.0,1.19489697]
[1751300697344,0.75672324,107410.0,107400.0,1.19489697]
[1751300697546,0.02752324,107410.0,107400.0,1.19489697]
[1751300700554,0.02752324,107410.0,107400.0,1.20400685]
[1751300701254,0.031,107420.0,107410.0,0.1861565]
[1751300701454,0.19668553,107440.0,107430.0,0.1861219]
[1751300701753,0.22092,107440.0,107430.0,1.27469484]
[1751300701955,0.14092,107440.0,107430.0,1.68481801]
[1751300702147,0.73978553,107450.0,107430.0,1.68481801]
[1751300702148,0.25166553,107450.0,107440.0,0.1861046]
[1751300702348,0.83970553,107450.0,107440.0,0.5799046]
[1751300702851,0.25166553,107450.0,107440.0,0.2191046]
[1751300703053,0.3063,107450.0,107440.0,1.22552777]
[1751300703254,0.89418,107450.0,107440.0,1.22552777]
[1751300703454,0.90350459,107450.0,107440.0,1.22552777]
[1751300703755,0.91150459,107450.0,107440.0,0.9099046]
[1751300704147,0.91150459,107450.0,107440.0,0.5799046]
[1751300704750,1.09759179,107450.0,107440.0,0.5799046]
[1751300705054,0.99759179,107450.0,107440.0,0.5799046]
[1751300705249,2.18441496,107450.0,107440.0,0.1861046]
[1751300705454,2.24018049,107450.0,107440.0,0.1861046]
[1751300706254,1.86018049,107450.0,107440.0,0.1861046]
[1751300706454,2.19018049,107450.0,107440.0,0.1861046]
[1751300707153,2.18986049,107450.0,107440.0,0.1861046]
[1751300708356,2.02986049,107450.0,107440.0,0.1861046]
[1751300708657,2.23986049,107450.0,107440.0,0.1861046]
[1751300709957,2.22986049,107450.0,107440.0,0.1861046]
[1751300710158,2.01986049,107450.0,107440.0,0.1861046]
[1751300710349,2.19986049,107450.0,107440.0,0.1861046]
[1751300712058,2.01986049,107450.0,107440.0,0.1861046]
[1751300712259,2.22986049,107450.0,107440.0,0.1861046]
[1751300712453,0.1861045,107440.0,107430.0,0.34266184]
[1751300712653,0.66742767,107440.0,107430.0,0.34266184]
[1751300713260,0.68921158,107440.0,107430.0,0.34266184]
[1751300713952,0.69521158,107440.0,107430.0,0.34266184]
[1751300714648,0.59521158,107440.0,107430.0,0.34266184]
[1751300715054,0.59521158,107440.0,107430.0,0.37386184]
[1751300716861,0.27958841,107440.0,107430.0,0.37386184]
[1751300718562,0.2578045,107440.0,107430.0,0.37386184]
[1751300719759,0.2250045,107440.0,107430.0,0.68948501]
[1751300719964,0.9191045,107440.0,107430.0,0.45081205]
[1751300720166,0.9191045,107440.0,107430.0,0.76643522]
[1751300721366,0.94087446,107440.0,107430.0,0.45081205]
[1751300721568,0.97207446,107440.0,107430.0,0.45081205]
[1751300723771,0.97183446,107440.0,107430.0,0.45081205]
[1751300724570,0.97183446,107440.0,107430.0,0.76643522]
[1751300725762,0.97183446,107440.0,107430.0,0.45081205]
[1751300727373,2.0141208,107440.0,107430.0,0.20067201]
[1751300727569,1.72969763,107440.0,107430.0,0.1861218]
[1751300728666,1.00189763,107440.0,107430.0,0.1861218]
[1751300728869,1.41455446,107440.0,107430.0,0.1861218]
[1751300729073,1.41455446,107440.0,107430.0,0.2166218]
[1751300729373,1.22844996,107440.0,107430.0,0.2166218]
[1751300729679,1.41455446,107440.0,107430.0,0.2166218]
[1751300730379,1.73017763,107440.0,107430.0,0.2166218]
[1751300730681,1.19724996,107440.0,107430.0,0.2166218]
[1751300730870,0.12896996,107440.0,107430.0,0.53224497]
[1751300731073,0.85688996,107440.0,107430.0,0.56324497]
[1751300731277,0.85688996,107440.0,107430.0,0.2476218]
[1751300732180,1.04299446,107440.0,107430.0,0.2476218]
[1751300732368,0.24012996,107440.0,107430.0,0.91324497]
[1751300732572,0.75536996,107440.0,107430.0,0.92779451]
[1751300733074,0.17012996,107440.0,107430.0,0.92779451]
[1751300733875,0.006,107440.0,107430.0,0.98357571]
[1751300734179,0.3618,107450.0,107440.0,0.1861045]
[1751300734380,0.38358077,107450.0,107440.0,0.96138716]
[1751300734679,0.38358077,107450.0,107440.0,1.72206121]
[1751300735182,0.3618,107450.0,107440.0,1.72206121]
[1751300735486,0.50176,107460.0,107450.0,0.1860872]
[1751300735775,0.52315351,107460.0,107450.0,0.95895672]
[1751300736082,0.88388658,107460.0,107450.0,0.23263355]
[1751300736283,0.97548658,107460.0,107450.0,0.2180872]
[1751300737184,0.62916341,107460.0,107450.0,0.2180872]
[1751300737386,1.16933351,107460.0,107450.0,0.2180872]
[1751300737775,1.16933351,107460.0,107450.0,0.5780872]
[1751300737978,0.44309351,107460.0,107450.0,0.2487872]
[1751300738177,1.16917351,107460.0,107450.0,0.2487872]
[1751300738373,0.38219351,107460.0,107450.0,0.90441037]
[1751300738689,0.38219351,107460.0,107450.0,0.91895617]
[1751300739182,0.38219351,107460.0,107450.0,0.90441037]
[1751300739986,0.38419351,107460.0,107450.0,0.90441037]
[1751300740672,0.88588658,107460.0,107450.0,0.2980872]
[1751300740877,0.88588658,107460.0,107450.0,0.2180872]
[1751300740878,1.53400658,107460.0,107450.0,0.2180872]
[1751300741182,1.56410658,107460.0,107450.0,0.2180872]
[1751300742284,1.24848341,107460.0,107450.0,0.5280872]
[1751300743584,1.03231351,107460.0,107450.0,0.84371037]
[1751300743886,1.21838341,107460.0,107450.0,0.84371037]
[1751300744278,1.21838341,107460.0,107450.0,0.5280872]
[1751300744582,1.03231351,107460.0,107450.0,0.5280872]
[1751300744786,1.21838341,107460.0,107450.0,0.2180872]
[1751300745688,1.03231351,107460.0,107450.0,0.2180872]
[1751300746389,1.03231351,107460.0,107450.0,0.5280872]
[1751300746681,0.96911351,107460.0,107450.0,0.84371037]
[1751300746986,0.38419351,107460.0,107450.0,0.56381037]
[1751300747575,0.41549351,107460.0,107450.0,0.56381037]
[1751300749385,0.41549351,107460.0,107450.0,0.86041037]
[1751300749580,0.60156341,107460.0,107450.0,0.5146872]
[1751300749781,0.91718658,107460.0,107450.0,0.4826872]
[1751300750090,0.94978658,107460.0,107450.0,0.4826872]
[1751300750278,1.00978658,107460.0,107450.0,0.4826872]
[1751300755087,0.38419351,107460.0,107450.0,1.15831037]
[1751300755393,0.57026341,107460.0,107450.0,0.2328344]
[1751300755692,0.88588658,107460.0,107450.0,0.2328344]
[1751300755889,0.98108658,107460.0,107450.0,0.2328344]
[1751300756494,0.79501668,107460.0,107450.0,0.2328344]
[1751300756694,0.47939351,107460.0,107450.0,0.2328344]
[1751300757394,0.44619351,107460.0,107450.0,0.2328344]
[1751300757794,0.44619351,107460.0,107450.0,0.54845757]
[1751300758088,0.38419351,107460.0,107450.0,0.5528344]
[1751300758282,0.38419351,107460.0,107450.0,0.89085757]
[1751300758684,0.14192,107480.0,107470.0,0.1860526]
[1751300758896,0.17202,107480.0,107470.0,0.51622297]
[1751300759087,0.17202,107480.0,107470.0,0.53457577]
[1751300759286,0.75486,107480.0,107470.0,0.56697577]
[1751300759691,0.9408953,107480.0,107470.0,0.56697577]
[1751300759896,0.9408953,107480.0,107470.0,0.1860526]
[1751300760098,1.28811847,107480.0,107470.0,0.1860526]
[1751300760487,1.28819847,107480.0,107470.0,0.1860526]
[1751300760699,1.29219847,107480.0,107470.0,0.1860526]
[1751300760894,0.9765753,107480.0,107470.0,0.1860526]
[1751300763203,0.9865753,107480.0,107470.0,0.1860526]
[1751300764197,0.80054,107480.0,107470.0,0.1860526]
[1751300764403,0.9865753,107480.0,107470.0,0.1860526]
[1751300764701,0.9865753,107480.0,107470.0,0.20059776]
[1751300764702,0.80054,107480.0,107470.0,0.20059776]
[1751300764904,0.9865753,107480.0,107470.0,0.20059776]
[1751300765097,0.80054,107480.0,107470.0,0.20059776]
[1751300765498,0.9865754,107480.0,107470.0,0.20059776]
[1751300766404,0.80054,107480.0,107470.0,0.20059776]
[1751300766702,0.80054,107480.0,107470.0,0.51622093]
[1751300766903,0.79054,107480.0,107470.0,0.20059776]
[1751300767103,0.9765754,107480.0,107470.0,0.20059776]
[1751300767303,0.79054,107480.0,107470.0,0.20059776]
[1751300767603,0.9765754,107480.0,107470.0,0.20059776]
[1751300768502,0.9765754,107480.0,107470.0,0.1860526]
[1751300770097,0.79054,107480.0,107470.0,0.1860526]
[1751300770605,0.9765753,107480.0,107470.0,0.1860526]
[1751300771003,0.9765753,107480.0,107470.0,0.2161526]
[1751300771801,0.1860527,107470.0,107460.0,0.037116]
[1751300772006,1.17682327,107470.0,107460.0,0.18607]
[1751300773499,0.83682327,107470.0,107460.0,0.18607]
[1751300773699,1.17682327,107470.0,107460.0,0.18607]
[1751300773901,1.17982327,107470.0,107460.0,0.18607]
[1751300774101,1.14982327,107470.0,107460.0,0.18607]
[1751300774298,1.10330637,107470.0,107460.0,0.18607]
[1751300776100,1.14982327,107470.0,107460.0,0.18607]
[1751300778110,1.33592727,107470.0,107460.0,0.18607]
[1751300778309,1.14982327,107470.0,107460.0,0.18607]
[1751300778512,1.33592727,107470.0,107460.0,0.18607]
[1751300779807,0.18607,107460.0,107450.0,0.2325999]
[1751300780108,1.58853317,107460.0,107450.0,0.2325999]
[1751300782112,1.48853317,107460.0,107450.0,0.2325999]
[1751300782410,1.58853317,107460.0,107450.0,0.2325999]
[1751300783603,1.58953317,107460.0,107450.0,0.2325999]
[1751300784506,1.48953317,107460.0,107450.0,0.2325999]
[1751300784704,1.58953317,107460.0,107450.0,0.2325999]
[1751300793217,1.58953317,107460.0,107450.0,0.27784772]
[1751300796416,1.58953317,107460.0,107450.0,0.2325999]
[1751300797722,1.48953317,107460.0,107450.0,0.2325999]
[1751300797920,1.48953317,107460.0,107450.0,0.2644999]
[1751300798919,1.58953317,107460.0,107450.0,0.2644999]
[1751300799622,1.48953317,107460.0,107450.0,0.2644999]
[1751300800215,1.48953317,107460.0,107450.0,0.27904772]
[1751300801513,0.54812317,107460.0,107450.0,0.27904772]
[1751300801714,0.75494,107460.0,107450.0,0.27904772]
[1751300801922,0.94101,107460.0,107450.0,0.65737089]
[1751300802325,0.94101,107460.0,107450.0,0.69448689]
[1751300802826,0.94101,107460.0,107450.0,0.37886372]
[1751300804421,0.94101,107460.0,107450.0,0.69448689]
[1751300805224,0.94101,107460.0,107450.0,0.37886372]
[1751300805419,0.94101,107460.0,107450.0,0.69448689]
[1751300805819,0.94101,107460.0,107450.0,0.37886372]
[1751300806425,0.90951,107460.0,107450.0,0.37886372]
[1751300806726,0.90951,107460.0,107450.0,0.69448689]
[1751300807425,0.001,107460.0,107450.0,0.69448689]
[1751300807726,0.3267899,107460.0,107450.0,0.65737089]
[1751300809130,0.3267899,107460.0,107450.0,0.69448689]
[1751300809633,0.32679,107460.0,107450.0,0.69448689]
[1751300809822,0.32679,107460.0,107450.0,0.37886372]
[1751300812438,0.32679,107460.0,107450.0,0.67993907]
[1751300812838,0.32679,107460.0,107450.0,0.3643159]
[1751300813039,0.32679,107460.0,107450.0,0.67993907]
[1751300815951,0.64241317,107460.0,107450.0,0.3643159]
[1751300816146,0.67341317,107460.0,107450.0,0.3643159]
[1751300817541,0.67341317,107460.0,107450.0,0.3271999]
[1751300818552,1.11341317,107460.0,107450.0,0.2644999]
[1751300818744,1.14401317,107460.0,107450.0,0.2644999]
[1751300819346,1.04401317,107460.0,107450.0,0.2644999]
[1751300819546,1.04401317,107460.0,107450.0,0.27904702]
[1751300822454,0.82401317,107460.0,107450.0,0.27904702]
[1751300823250,0.92401317,107460.0,107450.0,0.31616302]
[1751300823451,1.17401317,107460.0,107450.0,0.26965042]
[1751300823752,1.17401317,107460.0,107450.0,0.01454712]
[1751300824152,1.2297787,107460.0,107450.0,0.01454712]
[1751300824354,0.1860873,107450.0,107440.0,0.037116]
[1751300824545,1.61799047,107450.0,107440.0,0.05166462]
[1751300825559,1.61799047,107450.0,107440.0,0.01454862]
[1751300828457,1.03551047,107450.0,107440.0,0.20065322]
[1751300828663,1.75759047,107450.0,107440.0,0.20065322]
[1751300829064,1.03551047,107450.0,107440.0,0.20165322]
[1751300829264,1.17511047,107450.0,107440.0,0.20165322]
[1751300829461,1.75759047,107450.0,107440.0,0.20165322]
[1751300830956,1.75759047,107450.0,107440.0,0.01554862]
[1751300831657,1.75759047,107450.0,107440.0,0.001]
[1751300833859,1.03551047,107450.0,107440.0,0.1871046]
[1751300834066,1.75759047,107450.0,107440.0,0.1871046]
[1751300835266,1.813356,107450.0,107440.0,0.1871046]
[1751300839170,1.091276,107450.0,107440.0,0.1871046]
[1751300839467,1.813356,107450.0,107440.0,0.1871046]
[1751300841869,1.091276,107450.0,107440.0,0.1871046]
[1751300842071,1.813356,107450.0,107440.0,0.1871046]
[1751300842369,1.813356,107450.0,107440.0,0.2194046]
[1751300846069,1.75759047,107450.0,107440.0,0.2194046]
[1751300846772,1.17511047,107450.0,107440.0,0.2194046]
[1751300846973,1.72739047,107450.0,107440.0,0.2194046]
[1751300850574,1.75739047,107450.0,107440.0,0.2194046]
[1751300853277,1.813156,107450.0,107440.0,0.2194046]
[1751300855077,1.813156,107450.0,107440.0,0.0333]
[1751300855272,0.1861046,107440.0,107430.0,0.0321]
[1751300855581,1.02402777,107440.0,107430.0,0.2182208]
[1751300855771,0.7084046,107440.0,107430.0,0.2182208]
[1751300856072,1.02402777,107440.0,107430.0,0.2182208]